bitfinex-derivatives/quotes_SOLF0:USTF0_20250215
["timestamp","ask_amount","ask_price","bid_price","bid_amount"]
[1739624163913,9.01041961,195.96,195.91,9.01041961]
[1739624164111,5.1028,195.94,195.91,9.01041961]
[1739624164311,9.01041961,195.94,195.89,9.01041961]
[1739624164515,9.01041961,195.94,195.91,0.03864952]
[1739624164916,5.1031,195.93,195.91,0.03864952]
[1739624166118,9.01041961,195.96,195.91,0.03864952]
[1739624166320,5.1028,195.94,195.91,0.03864952]
[1739624166514,9.01041961,195.96,195.91,0.03864952]
[1739624166719,5.1033,195.93,195.91,0.03864952]
[1739624167620,5.1033,195.92,195.91,0.03864952]
[1739624168422,5.1031,195.93,195.91,0.03864952]
[1739624168625,9.01041961,195.96,195.91,0.03864952]
[1739624168823,9.01041961,195.96,195.91,9.04906913]
[1739624169318,9.01041961,195.98,195.91,9.04906913]
[1739624169522,9.01041961,195.98,195.91,14.15266913]
[1739624169726,9.01041961,195.98,195.91,9.04906913]
[1739624172028,9.01041961,195.94,195.91,0.03864952]
[1739624173023,14.11321961,195.94,195.91,0.03864952]
[1739624173228,9.01041961,195.96,195.91,9.04906913]
[1739624173422,9.01041961,195.98,195.91,9.04906913]
[1739624173630,9.01041961,195.98,195.93,5.103]
[1739624173927,9.01041961,195.98,195.91,9.04906913]
[1739624174227,9.01041961,195.98,195.93,9.01041961]
[1739624174623,196.1015,195.99,195.95,14.11281961]
[1739624174818,5.1015,195.99,195.95,14.11281961]
[1739624175026,5.1015,195.99,195.95,14.14849161]
[1739624175726,114.5,196.08,195.97,9.01041961]
[1739624175727,5.1011,196.01,195.97,9.01041961]
[1739624176124,9.01041961,196.02,195.97,9.04545335]
[1739624176719,14.11121961,196.02,195.97,14.14745335]
[1739624177733,5.1008,196.02,195.97,5.13703374]
[1739624178729,14.05652617,196.06,195.97,0.03503374]
[1739624179928,5.1012,196.01,195.97,0.03503374]
[1739624181425,14.05652617,196.06,195.97,0.03503374]
[1739624181623,5.1013,196.0,195.97,0.03503374]
[1739624181828,14.05652617,196.03,195.97,0.03503374]
[1739624182128,5.1018,195.98,195.97,0.03503374]
[1739624184531,5.1018,195.98,195.97,3.374e-05]
[1739624184832,5.1018,195.98,195.92,3.0533]
[1739624184833,5.103,195.94,195.87,29.82204878]
[1739624185132,5.103,195.94,195.88,7.04105919]
[1739624185930,5.13853835,195.93,195.89,0.03411949]
[1739624186231,0.03543835,195.93,195.89,0.03411949]
[1739624187439,0.03543835,195.93,195.89,5.13801949]
[1739624187638,0.03543835,195.93,195.89,0.03411949]
[1739624188730,0.03543835,195.93,195.9,5.1038]
[1739624189938,0.03543835,195.93,195.89,0.03411949]
[1739624190138,0.03543835,195.93,195.9,5.1038]
[1739624194141,0.03543835,195.93,195.91,5.1036]
[1739624195339,5.13853835,195.93,195.9,5.1038]
[1739624195539,5.13853835,195.93,195.89,0.03411949]
[1739624196143,5.13853835,195.93,195.89,5.13811949]
[1739624196635,0.03543835,195.93,195.89,0.03411949]
[1739624197238,0.03543835,195.93,195.91,5.1035]
[1739624197843,0.03543835,195.93,195.91,14.10549805]
[1739624198534,0.03543835,195.93,195.92,5.1033]
[1739624198742,0.03543835,195.93,195.91,9.00199805]
[1739624200143,0.03543835,195.93,195.91,14.10549805]
[1739624201542,0.03543835,195.93,195.91,9.00199805]
[1739624202846,0.03543835,195.93,195.89,9.03611754]
[1739624203047,9.0374364,195.93,195.89,0.03411949]
[1739624203942,5.1038,195.91,195.89,0.03411949]
[1739624204148,9.00199805,195.91,195.89,0.03411949]
[1739624204650,5.1038,195.9,195.89,0.03411949]
[1739624204847,9.00199805,195.91,195.83,7.04105919]
[1739624205045,9.00199805,195.86,195.83,7.04105919]
[1739624205948,9.03509554,195.86,195.83,7.0783095]
[1739624206148,5.1051,195.85,195.83,7.0783095]
[1739624206352,5.1051,195.85,195.83,0.03725031]
[1739624206749,9.03509554,195.86,195.83,0.03725031]
[1739624207043,5.13799749,195.86,195.83,0.03725031]
[1739624207750,5.13849749,195.86,195.83,0.03725031]
[1739624207949,0.03309749,195.86,195.83,0.03725031]
[1739624209149,5.13849749,195.86,195.83,0.03725031]
[1739624212053,5.1057,195.85,195.83,0.03725031]
[1739624214050,9.03509554,195.86,195.83,0.03725031]
[1739624214247,14.14069554,195.86,195.83,0.03725031]
[1739624214549,9.03509554,195.86,195.83,0.03725031]
[1739624214754,0.03309749,195.86,195.83,9.03924836]
[1739624215349,5.13869749,195.86,195.83,9.03924836]
[1739624215556,0.03309749,195.86,195.83,9.03924836]
[1739624217156,0.03309749,195.86,195.83,14.14534836]
[1739624220062,5.13859749,195.86,195.83,9.03924836]
[1739624220262,0.03309749,195.86,195.83,0.03725031]
[1739624220458,9.03509554,195.86,195.83,0.03725031]
[1739624220664,14.10789805,195.84,195.83,0.03725031]
[1739624224868,5.1059,195.84,195.83,0.03725031]
[1739624226870,14.10789805,195.84,195.83,0.03725031]
[1739624228561,5.1059,195.84,195.83,0.03725031]
[1739624229468,0.03309749,195.86,195.83,9.03924836]
[1739624229872,0.03309749,195.86,195.83,0.03725031]
[1739624230274,5.1059,195.84,195.83,0.03725031]
[1739624233471,14.10789805,195.84,195.83,0.03725031]
[1739624241279,5.1057,195.85,195.83,0.03725031]
[1739624242077,14.14049554,195.86,195.83,0.03725031]
[1739624242784,5.1059,195.84,195.83,0.03725031]
[1739624244581,5.1056,195.85,195.83,0.03725031]
[1739624245288,0.03309749,195.86,195.83,5.14345031]
[1739624246390,9.00199805,195.88,195.83,5.14345031]
[1739624246591,14.10689805,195.88,195.83,5.14345031]
[1739624247090,9.00199805,195.88,195.83,0.03725031]
[1739624247592,0.03265999,195.87,195.83,0.03725031]
[1739624248092,5.1054,195.86,195.83,0.03725031]
[1739624248585,9.00199805,195.86,195.83,0.03725031]
[1739624248793,5.1059,195.84,195.83,0.03725031]
[1739624250595,9.00199805,195.86,195.83,0.03725031]
[1739624251190,14.10759805,195.86,195.83,0.03725031]
[1739624251495,9.00199805,195.86,195.83,0.03725031]
[1739624251789,0.03265999,195.87,195.83,0.03725031]
[1739624252793,5.13785999,195.87,195.83,5.14325031]
[1739624253190,191.0,195.95,195.85,9.00199805]
[1739624253191,9.00199805,195.92,195.85,9.00199805]
[1739624253494,9.00199805,195.94,195.87,9.00199805]
[1739624254295,9.00199805,195.94,195.89,0.03493445]
[1739624255098,5.1039,195.92,195.89,0.03493445]
[1739624258596,5.1042,195.91,195.89,0.03493445]
[1739624260703,5.1043,195.9,195.89,0.03493445]
[1739624262805,14.10629805,195.9,195.89,0.03493445]
[1739624264605,14.10629805,195.9,195.89,3.445e-05]
[1739624279621,9.00199805,195.9,195.81,1.6554]
[1739624279814,9.00199805,195.85,195.81,1.6554]
[1739624280909,5.1064,195.82,195.81,1.6905095]
[1739624281311,5.1064,195.82,195.81,0.0351095]
[1739624300132,5.1064,195.82,195.81,9.5e-06]
[1739624315145,14.10819805,195.83,195.81,9.5e-06]
[1739624315344,9.03878879,195.85,195.81,9.5e-06]
[1739624316144,9.00199805,195.83,195.81,9.5e-06]
[1739624317147,5.1064,195.82,195.81,9.5e-06]
[1739624334354,9.00199805,195.83,195.75,3.0699]
[1739624334556,5.108,195.76,195.75,3.0699]
[1739624334961,9.00199805,195.77,195.68,7.04105919]
[1739624334962,9.00199805,195.77,195.69,9.00199805]
[1739624335152,5.1087,195.74,195.69,18.95629805]
[1739624335557,0.03479969,195.73,195.7,0.03520738]
[1739624335758,0.03479969,195.73,195.7,5.14460738]
[1739624336250,9.00199805,195.75,195.71,14.11129805]
[1739624337054,5.108,195.76,195.71,14.11129805]
[1739624337561,0.03798387,195.75,195.71,14.11129805]
[1739624339558,0.03798387,195.75,195.72,5.109]
[1739624340454,5.108,195.76,195.72,5.109]
[1739624340659,5.1077,195.78,195.73,14.11059805]
[1739624341760,5.1078,195.77,195.74,0.03666668]
[1739624342960,9.00199805,195.79,195.74,0.03666668]
[1739624343266,9.00199805,195.81,195.75,9.00199805]
[1739624343464,9.00199805,195.81,195.76,3.0378]
[1739624343662,9.00199805,195.81,195.77,5.1077]
[1739624345066,14.10869805,195.81,195.77,5.1077]
[1739624346169,9.00199805,195.83,195.79,9.00199805]
[1739624346369,9.00199805,195.83,195.79,14.10909805]
[1739624346667,9.00199805,195.83,195.79,0.03871415]
[1739624346867,9.00199805,195.81,195.79,0.03871415]
[1739624347068,9.00199805,195.81,195.76,4.6916]
[1739624347368,9.00199805,195.81,195.78,0.03333822]
[1739624347568,9.00199805,195.79,195.78,0.03333822]
[1739624347759,9.00199805,195.79,195.76,4.6916]
[1739624347959,9.00199805,195.77,195.76,3.0378]
[1739624348165,9.00199805,195.77,195.76,3.07482627]
[1739624348766,14.10969805,195.77,195.76,3.07482627]
[1739624349468,9.00199805,195.77,195.76,3.07482627]
[1739624349668,5.1075,195.78,195.76,3.07482627]
[1739624349870,9.00199805,195.79,195.76,3.0378]
[1739624350274,14.10939805,195.79,195.76,3.0378]
[1739624353474,5.1071,195.8,195.76,8.1458]
[1739624353875,5.1071,195.8,195.76,8.17813321]
[1739624356375,9.00199805,195.81,195.76,3.07013321]
[1739624356577,5.1073,195.79,195.76,3.07013321]
[1739624357576,9.00199805,195.81,195.76,3.07013321]
[1739624357774,9.00199805,195.79,195.76,3.07013321]
[1739624358176,9.00199805,195.79,195.76,3.072069]
[1739624359079,5.1077,195.77,195.76,3.072069]
[1739624361179,14.10969805,195.77,195.76,0.034269]
[1739624361380,14.10969805,195.77,195.76,6.9e-05]
[1739624373589,9.00199805,195.77,195.76,6.9e-05]
[1739624375093,14.10969805,195.77,195.76,6.9e-05]
[1739624407821,14.10969805,195.77,195.69,3.2283]
[1739624407822,5.1096,195.7,195.69,3.2283]
[1739624409931,0.03516144,195.71,195.69,3.2283]
[1739624410225,9.00199805,195.75,195.69,12.23029805]
[1739624410425,9.00199805,195.77,195.71,9.00199805]
[1739624410626,9.00199805,195.77,195.71,14.11119805]
[1739624411323,9.00199805,195.77,195.72,0.03303341]
[1739624412131,9.00199805,195.79,195.73,9.00199805]
[1739624413125,14.10939805,195.79,195.74,5.1085]
[1739624413717,5.1078,195.77,195.73,9.00199805]
[1739624414019,9.00199805,195.79,195.73,9.00199805]
[1739624414219,5.1075,195.78,195.73,9.00199805]
[1739624414728,5.1075,195.78,195.73,14.11049805]
[1739624416324,5.1075,195.78,195.73,9.00199805]
[1739624416525,5.1075,195.78,195.74,5.1085]
[1739624417028,9.00199805,195.79,195.73,9.00199805]
[1739624417727,9.00199805,195.75,195.72,0.03303341]
[1739624417928,9.00199805,195.73,195.72,0.03303341]
[1739624419730,5.1085,195.74,195.72,0.03303341]
[1739624420027,9.00199805,195.75,195.72,0.03303341]
[1739624420226,9.00199805,195.79,195.73,9.00199805]
[1739624420629,9.00199805,195.79,195.74,5.1085]
[1739624421334,5.1075,195.78,195.74,5.1085]
[1739624422630,9.00199805,195.79,195.74,5.1085]
[1739624422631,5.1078,195.77,195.74,5.1085]
[1739624422933,9.00199805,195.79,195.73,9.00199805]
[1739624423736,5.1079,195.77,195.73,14.11059805]
[1739624424235,5.1079,195.77,195.73,9.00199805]
[1739624424530,5.1075,195.78,195.74,5.1085]
[1739624426035,9.00199805,195.79,195.73,9.00199805]
[1739624426835,5.1079,195.77,195.73,5.1088]
[1739624427337,5.1079,195.77,195.74,5.1085]
[1739624427835,5.1079,195.77,195.73,9.00199805]
[1739624428038,5.1084,195.75,195.72,0.03303341]
[1739624429043,9.00199805,195.77,195.72,0.03303341]
[1739624429244,5.1086,195.74,195.72,0.03303341]
[1739624429438,9.00199805,195.77,195.72,0.03303341]
[1739624430148,5.1084,195.75,195.72,0.03303341]
[1739624430948,5.1084,195.75,195.72,5.14203341]
[1739624432450,5.1084,195.75,195.72,0.03303341]
[1739624433655,9.00199805,195.75,195.72,0.03303341]
[1739624433949,5.1088,195.73,195.72,0.03303341]
[1739624434549,14.11079805,195.73,195.72,0.03303341]
[1739624450056,9.00199805,195.77,195.72,0.03303341]
[1739624450256,9.00199805,195.79,195.73,9.00199805]
[1739624450558,5.1074,195.79,195.75,9.00199805]
[1739624451054,9.00199805,195.81,195.75,9.00199805]
[1739624451256,9.00199805,195.79,195.74,0.03409773]
[1739624451555,9.00199805,195.77,195.73,1.5386]
[1739624451758,5.108,195.76,195.75,0.03888575]
[1739624455059,5.1077,195.78,195.75,0.03888575]
[1739624457662,9.00199805,195.79,195.75,0.03888575]
[1739624460571,9.00199805,195.81,195.75,9.0408838]
[1739624461273,9.00199805,195.81,195.76,5.108]
[1739624461872,191.0,195.85,195.75,9.0408838]
[1739624461873,9.00199805,195.83,195.77,14.10949805]
[1739624462075,200.00199805,195.85,195.79,9.00199805]
[1739624462673,5.1064,195.83,195.79,9.00199805]
[1739624465269,5.1064,195.83,195.79,14.10919805]
[1739624465570,5.1064,195.83,195.79,9.00199805]
[1739624466377,5.1065,195.82,195.79,9.00199805]
[1739624468080,9.00199805,195.85,195.79,9.00199805]
[1739624468780,5.1065,195.82,195.79,9.00199805]
[1739624471284,5.1068,195.81,195.79,9.00199805]
[1739624473481,9.00199805,195.87,195.79,9.00199805]
[1739624473682,9.00199805,195.87,195.82,9.00199805]
[1739624473981,9.00199805,195.87,195.81,0.0324863]
[1739624474478,9.00199805,195.85,195.81,0.0324863]
[1739624474778,191.0,195.92,195.81,0.0324863]
[1739624474779,9.00199805,195.83,195.81,0.0324863]
[1739624475078,5.1064,195.82,195.81,0.0324863]
[1739624477886,9.00199805,195.87,195.81,0.0324863]
[1739624478083,9.00199805,195.89,195.83,9.00199805]
[1739624478287,5.1055,195.86,195.83,9.00199805]
[1739624478481,5.1055,195.86,195.84,0.03771681]
[1739624478694,9.00199805,195.89,195.84,0.03771681]
[1739624480086,5.1054,195.86,195.84,0.03771681]
[1739624480288,9.00199805,195.89,195.84,0.03771681]
[1739624480484,9.00199805,195.89,195.85,9.00199805]
[1739624480785,9.00199805,195.91,195.85,9.00199805]
[1739624481885,5.1054,195.87,195.85,9.00199805]
[1739624483492,9.00199805,195.91,195.85,9.00199805]
[1739624484394,9.00199805,195.93,195.87,9.00199805]
[1739624484784,5.1045,195.9,195.88,0.03278056]
[1739624484988,41.43460058,196.01,195.89,9.00199805]
[1739624485191,41.43460058,196.01,195.91,9.00199805]
[1739624485192,9.00199805,195.97,195.91,9.00199805]
[1739624485392,9.00199805,195.95,195.93,0.03840095]
[1739624485688,9.00199805,195.95,195.89,9.00199805]
[1739624485887,9.00199805,195.95,195.92,0.03757505]
[1739624486094,9.00199805,195.97,195.92,0.03757505]
[1739624486297,5.1035,195.94,195.92,0.03757505]
[1739624486488,9.00199805,195.97,195.92,0.03757505]
[1739624486690,5.1028,195.96,195.92,0.03757505]
[1739624487090,9.00199805,195.97,195.92,0.03757505]
[1739624487795,5.1033,195.95,195.92,0.03757505]
[1739624488092,9.00199805,195.97,195.92,0.03757505]
[1739624488288,5.1035,195.94,195.92,0.03757505]
[1739624490294,9.00199805,195.97,195.92,0.03757505]
[1739624490295,5.1031,195.95,195.92,0.03757505]
[1739624490597,9.00199805,195.97,195.92,0.03757505]
[1739624490790,5.1031,195.95,195.92,0.03757505]
[1739624491193,5.1033,195.94,195.93,9.00199805]
[1739624493004,9.00199805,195.99,195.93,9.00199805]
[1739624493601,9.00199805,196.01,195.95,9.00199805]
[1739624494004,9.00199805,196.01,195.96,0.03817064]
[1739624494905,5.1026,195.97,195.96,0.03817064]
[1739624498503,14.10459805,195.97,195.96,0.03817064]
[1739624502399,14.10419805,195.99,195.96,0.03817064]
[1739624502909,9.00199805,196.01,195.96,0.03817064]
[1739624503208,5.102,196.0,195.96,0.03817064]
[1739624503909,5.1021,195.99,195.96,0.03817064]
[1739624504309,9.00199805,196.01,195.96,0.03817064]
[1739624505010,9.00199805,196.01,195.96,5.14097064]
[1739624505509,5.1018,196.0,195.96,0.03817064]
[1739624507211,9.00199805,196.01,195.96,0.03817064]
[1739624507407,5.1021,195.99,195.96,0.03817064]
[1739624507805,5.1018,196.0,195.96,0.03817064]
[1739624508010,9.00199805,196.01,195.96,0.03817064]
[1739624508613,5.1013,196.02,195.98,5.1021]
[1739624509309,9.00199805,196.03,195.98,5.1021]
[1739624509518,9.00199805,196.05,195.99,9.00199805]
[1739624509919,9.00199805,196.05,196.0,0.03403014]
[1739624510613,5.1014,196.02,196.0,0.03403014]
[1739624511218,14.10299805,196.03,196.0,0.03403014]
[1739624512414,5.1008,196.04,196.0,0.03403014]
[1739624513018,5.1008,196.04,196.0,5.13573014]
[1739624513419,5.101,196.03,196.0,0.03403014]
[1739624513620,9.00199805,196.05,196.0,0.03403014]
[1739624514118,5.1011,196.03,196.0,0.03403014]
[1739624514321,9.00199805,196.05,196.0,0.03403014]
[1739624514713,5.1011,196.03,196.0,0.03403014]
[1739624518123,5.1012,196.02,196.0,0.03403014]
[1739624520421,5.1015,196.01,196.0,0.03403014]
[1739624520818,9.00199805,196.05,196.0,0.03403014]
[1739624523027,5.101,196.03,196.0,5.13573014]
[1739624523227,9.00199805,196.05,196.0,5.13573014]
[1739624523523,5.1004,196.06,196.02,5.1012]
[1739624523827,9.00199805,196.07,196.02,5.1012]
[1739624524028,9.00199805,196.07,196.02,5.13371943]
[1739624525022,5.1005,196.05,196.02,5.13371943]
[1739624525329,9.00199805,196.07,196.02,0.03251943]
[1739624525529,5.101,196.03,196.02,0.03251943]
[1739624526530,5.1005,196.05,196.02,0.03251943]
[1739624527230,5.1008,196.04,196.02,0.03251943]
[1739624527935,9.00199805,196.09,196.03,9.00199805]
[1739624528233,5.1006,196.05,196.03,9.00199805]
[1739624529332,9.00199805,196.09,196.03,9.00199805]
[1739624529535,5.1002,196.06,196.03,9.00199805]
[1739624529835,9.00199805,196.09,196.03,9.00199805]
[1739624530335,5.1003,196.06,196.03,9.00199805]
[1739624531929,5.1005,196.05,196.03,9.00199805]
[1739624532335,9.00199805,196.09,196.03,9.00199805]
[1739624532835,5.1004,196.06,196.03,9.00199805]
[1739624533031,9.00199805,196.09,196.03,9.00199805]
[1739624533737,5.1003,196.06,196.03,9.00199805]
[1739624535237,9.00199805,196.11,196.05,9.00199805]
[1739624535836,9.00199805,196.11,196.07,9.00199805]
[1739624536338,9.00199805,196.09,196.07,0.03449807]
[1739624537036,9.00199805,196.11,196.07,0.03449807]
[1739624538040,5.0997,196.08,196.07,0.03449807]
[1739624539342,9.00199805,196.11,196.07,0.03449807]
[1739624539535,5.0994,196.09,196.07,0.03449807]
[1739624539735,5.0994,196.09,196.07,9.03649612]
[1739624542839,9.00199805,196.11,196.07,9.03649612]
[1739624543044,5.0997,196.08,196.07,9.03649612]
[1739624543645,5.0997,196.08,196.07,0.03449807]
[1739624549547,9.00199805,196.11,196.07,0.03449807]
[1739624549747,51.76284647,196.13,196.07,9.03649612]
[1739624550243,5.0993,196.1,196.07,9.03649612]
[1739624550946,5.0995,196.09,196.07,9.03649612]
[1739624551642,5.0992,196.1,196.07,9.03649612]
[1739624552237,5.0992,196.1,196.07,14.13629612]
[1739624553647,5.0992,196.1,196.07,9.03649612]
[1739624554149,9.00199805,196.13,196.07,9.03649612]
[1739624554350,5.0994,196.09,196.07,9.03649612]
[1739624557251,5.0997,196.08,196.07,9.03649612]
[1739624557550,9.00199805,196.13,196.07,9.03649612]
[1739624557751,9.00199805,196.13,196.07,14.13619612]
[1739624558154,9.00199805,196.13,196.07,9.03649612]
[1739624558954,9.00199805,196.09,196.07,0.03449807]
[1739624560053,5.0997,196.08,196.07,0.03449807]
[1739624569960,5.0997,196.08,196.07,9.807e-05]
[1739624571159,5.102,196.0,195.97,9.00199805]
[1739624571359,9.03574277,196.09,195.95,9.00199805]
[1739624571360,9.00199805,196.02,195.95,9.00199805]
[1739624571560,9.00199805,196.0,195.95,9.00199805]
[1739624572360,0.03466637,195.99,195.96,0.03296897]
[1739624573464,5.13676637,195.99,195.96,0.03296897]
[1739624573761,0.03466637,195.99,195.97,9.00199805]
[1739624573967,5.1009,196.04,195.97,9.00199805]
[1739624574263,5.1009,196.04,196.01,9.00199805]
[1739624574764,5.101,196.03,195.99,14.10379805]
[1739624575059,9.00199805,196.06,196.01,9.00199805]
[1739624575460,9.00199805,196.06,196.02,0.03515626]
[1739624575763,5.1007,196.05,196.02,0.03515626]
[1739624577464,9.00199805,196.06,196.02,0.03515626]
[1739624577665,5.1008,196.04,196.02,0.03515626]
[1739624579463,9.00199805,196.06,196.02,0.03515626]
[1739624579669,5.1005,196.05,196.02,0.03515626]
[1739624580771,5.1001,196.07,196.03,9.00199805]
[1739624580964,9.00199805,196.1,196.03,9.00199805]
[1739624581169,9.00199805,196.1,196.05,9.00199805]
[1739624582070,5.0999,196.08,196.05,9.00199805]
[1739624582471,9.00199805,196.1,196.05,14.10229805]
[1739624582668,9.00199805,196.12,196.05,14.10229805]
[1739624583168,9.00199805,196.08,196.07,0.03903027]
[1739624583367,9.00199805,196.08,196.03,9.00199805]
[1739624583562,9.00199805,196.08,196.06,0.03496367]
[1739624584275,5.0999,196.07,196.06,0.03496367]
[1739624584472,5.0999,196.07,196.06,6.367e-05]
[1739624586164,9.03689806,196.08,195.95,9.00199805]
[1739624586368,9.00199805,196.0,195.93,9.00199805]
[1739624587169,5.1023,195.98,195.93,9.00199805]
[1739624587371,0.03496367,195.98,195.95,0.03551895]
[1739624587975,9.03696172,195.98,195.95,0.03551895]
[1739624588276,9.00199805,195.96,195.95,0.03551895]
[1739624588672,14.10479805,195.96,195.95,0.03551895]
[1739624590072,14.10479805,195.96,195.95,1.895e-05]
[1739624592874,5.1028,195.96,195.95,1.895e-05]
[1739624594578,9.03696172,195.98,195.95,1.895e-05]
[1739624594775,0.03496367,195.98,195.95,9.002017]
[1739624597380,5.13726367,195.98,195.95,9.002017]
[1739624598281,0.03496367,195.98,195.95,9.002017]
[1739624599282,0.03496367,195.98,195.95,14.105017]
[1739624600582,0.03496367,195.98,195.95,9.002017]
[1739624600883,5.1015,196.01,195.97,14.10449805]
[1739624601080,9.00199805,196.04,195.99,9.00199805]
[1739624601983,5.13650001,196.03,196.0,0.03293863]
[1739624602175,0.03550001,196.03,196.0,0.03293863]
[1739624603083,5.1015,196.01,196.0,0.03293863]
[1739624604476,5.1015,196.01,196.0,3.863e-05]
[1739624609980,14.10329805,196.02,196.0,3.863e-05]
[1739624610391,9.00199805,196.02,196.0,3.863e-05]
[1739624610592,5.1015,196.01,196.0,3.863e-05]
[1739624610986,0.03550001,196.03,196.0,3.863e-05]
[1739624611583,5.1014,196.02,196.0,3.863e-05]
[1739624611991,0.03550001,196.03,196.0,3.863e-05]
[1739624612191,5.13650001,196.03,196.0,3.863e-05]
[1739624612391,0.03550001,196.03,196.0,3.863e-05]
[1739624613692,5.1014,196.02,196.0,3.863e-05]
[1739624613897,0.03550001,196.03,196.0,3.863e-05]
[1739624615099,5.1012,196.02,196.0,3.863e-05]
[1739624617296,0.03550001,196.03,196.0,3.863e-05]
[1739624617695,0.03550001,196.03,196.01,9.00199805]
[1739624618589,0.03550001,196.03,196.0,3.863e-05]
[1739624618790,0.03550001,196.03,196.01,9.00199805]
[1739624619292,9.00199805,196.08,196.03,9.00199805]
[1739624619695,5.1004,196.05,196.03,9.00199805]
[1739624620491,5.101,196.03,196.02,0.03486604]
[1739624622395,9.03489805,196.06,196.02,0.03486604]
[1739624622603,0.0329,196.06,196.03,9.00199805]
[1739624622901,0.0329,196.06,196.05,9.00199805]
[1739624627007,9.00199805,196.1,196.05,9.00199805]
[1739624627008,5.0995,196.09,196.05,14.10239805]
[1739624627804,9.00199805,196.1,196.05,9.00199805]
[1739624630008,5.0994,196.09,196.05,14.10239805]
[1739624633305,9.00199805,196.08,196.03,13.69489805]
[1739624633806,9.00199805,196.08,196.04,0.03485594]
[1739624634009,5.1006,196.05,196.04,0.03485594]
[1739624635411,5.1006,196.05,196.04,5.594e-05]
[1739624641921,5.1024,195.98,195.95,9.00199805]
[1739624642723,5.102,196.0,195.95,14.10499805]
[1739624642919,9.00199805,196.04,195.99,9.00199805]
[1739624643123,0.03485594,196.03,195.99,9.00199805]
[1739624643424,0.03485594,196.03,196.0,0.03833159]
[1739624643826,5.1012,196.02,196.0,0.03833159]
[1739624644821,5.1015,196.01,196.0,0.03833159]
[1739624650020,9.00199805,196.02,195.87,7.04105919]
[1739624650021,5.1035,195.94,195.91,9.00199805]
[1739624650722,5.1036,195.93,195.91,9.00199805]
[1739624651028,9.00199805,195.96,195.91,9.00199805]
[1739624651225,0.03533879,195.94,195.91,9.00199805]
[1739624651421,0.03533879,195.94,195.9,0.03314079]
[1739624651926,9.03733684,195.94,195.9,0.03314079]
[1739624652731,5.1041,195.92,195.9,0.03314079]
[1739624652933,9.00199805,195.92,195.9,0.03314079]
[1739624653329,5.1041,195.91,195.9,0.03314079]
[1739624654733,5.1039,195.92,195.9,0.03314079]
[1739624655226,0.03533879,195.94,195.9,0.03314079]
[1739624655431,0.03533879,195.94,195.91,9.00199805]
[1739624657628,0.03533879,195.94,195.9,0.03314079]
[1739624657833,5.13863879,195.94,195.9,0.03314079]
[1739624659035,0.03533879,195.94,195.9,5.13744079]
[1739624660333,0.03533879,195.94,195.9,0.03314079]
[1739624663127,5.1036,195.93,195.9,0.03314079]
[1739624663937,5.1041,195.91,195.9,0.03314079]
[1739624678549,5.1041,195.91,195.9,4.079e-05]
[1739624679750,14.11323765,195.91,195.9,4.079e-05]
[1739624688056,5.1041,195.91,195.9,4.079e-05]
[1739624689154,9.00913765,195.93,195.9,4.079e-05]
[1739624689155,5.1038,195.93,195.9,4.079e-05]
[1739624689355,5.1038,195.93,195.9,9.00917844]
[1739624690160,0.03533879,195.94,195.9,9.00917844]
[1739624690553,0.03533879,195.94,195.92,9.00913765]
[1739624694755,5.13863879,195.94,195.92,9.00913765]
[1739624695565,0.03533879,195.94,195.92,9.00913765]
[1739624697265,0.03533879,195.94,195.9,14.11347844]
[1739624697467,5.13883879,195.94,195.9,9.00917844]
[1739624698766,5.13883879,195.94,195.9,14.11347844]
[1739624698972,5.1036,195.93,195.9,9.00917844]
[1739624700372,5.1036,195.93,195.9,14.11347844]
[1739624700766,5.13863879,195.94,195.9,14.11347844]
[1739624701971,0.03533879,195.94,195.9,9.00917844]
[1739624702166,0.03533879,195.94,195.92,9.00913765]
[1739624702372,9.00913765,195.99,195.92,9.00913765]
[1739624702579,5.1025,195.97,195.92,14.11293765]
[1739624703263,5.1023,195.98,195.94,9.00913765]
[1739624703569,0.03853129,195.96,195.94,9.00913765]
[1739624703766,0.03853129,195.96,195.94,9.0469379]
[1739624704672,5.14143129,195.96,195.94,9.0469379]
[1739624705672,5.103,195.95,195.94,0.03780025]
[1739624705871,14.11213765,195.95,195.94,0.03780025]
[1739624706874,5.103,195.95,195.94,0.03780025]
[1739624707171,14.11213765,195.95,195.94,0.03780025]
[1739624707375,14.11213765,195.95,195.94,2.5e-07]
[1739624708179,9.00913765,195.95,195.86,3.121]
[1739624708369,9.00913765,195.89,195.84,1.6076]
[1739624709267,9.00913765,195.89,195.85,0.03794725]
[1739624709467,0.03857227,195.88,195.85,0.03794725]
[1739624710074,5.1053,195.87,195.85,0.03794725]
[1739624710377,0.03857227,195.88,195.85,0.03794725]
[1739624710574,5.1051,195.87,195.85,0.03794725]
[1739624713378,0.03857227,195.88,195.85,0.03794725]
[1739624714972,5.14367227,195.88,195.85,0.03794725]
[1739624716677,5.1052,195.87,195.85,0.03794725]